[Event "Championnat d'Europe de Blitz"]
[Date "2024.12.09"]
[White "Stankovic, Milos"]
[Black "Jobava, Baadur"]
[WhiteElo "2462"]
[BlackElo "2578"]
[Round "3.6"]
[Result "0-1"]
[TimeControl "180+2"]

1. d4 {[%emt 00:00:02] [%clk 00:03:01]} d5 {[%emt 00:00:05] [%clk 00:03:02]} 2.
Nf3 {[%clk 00:03:01]} Nf6 {[%emt 00:00:01] [%clk 00:03:03]} 3. Bf4 {[%clk
00:03:02]} c5 {[%emt 00:00:02] [%clk 00:03:04]} 4. e3 {[%emt 00:00:02] [%clk
00:03:02]} cxd4 {[%emt 00:00:01] [%clk 00:03:05]} 5. exd4 {[%emt 00:00:03] [%clk
00:03:01]} Nc6 {[%emt 00:00:01] [%clk 00:03:07]} 6. Nbd2 {[%emt 00:00:07] [%clk
00:02:55]} Bf5 {[%emt 00:00:03] [%clk 00:03:06]} 7. c3 {[%emt 00:00:07] [%clk
00:02:50]} e6 {[%emt 00:00:01] [%clk 00:03:07]} 8. Qb3 {[%emt 00:00:10] [%clk
00:02:42]} Qb6 {[%emt 00:00:01] [%clk 00:03:08]} 9. Qxb6 {[%emt 00:00:09] [%clk
00:02:35]} axb6 {[%emt 00:00:02] [%clk 00:03:09]} 10. Bb5 {[%emt 00:00:06] [%clk
00:02:30]} Nd7 {[%emt 00:00:02] [%clk 00:03:10]} 11. O-O {[%emt 00:00:14] [%clk
00:02:17]} f6 {[%emt 00:00:02] [%clk 00:03:10]} 12. Rfe1 {[%emt 00:00:06] [%clk
00:02:14]} g5 {[%emt 00:00:02] [%clk 00:03:10]} 13. Bg3 {[%emt 00:00:10] [%clk
00:02:05]} h5 {[%emt 00:00:02] [%clk 00:03:10]} 14. c4 {[%emt 00:00:27] [%clk
00:01:41]} Kf7 {[%emt 00:00:01] [%clk 00:03:10]} 15. cxd5 {[%emt 00:00:28] [%clk
00:01:15]} exd5 {[%emt 00:00:01] [%clk 00:03:11]} 16. h3 {[%emt 00:00:01] [%clk
00:01:15]} Bb4 {[%emt 00:00:08] [%clk 00:03:06]} 17. a3 {[%emt 00:00:06] [%clk
00:01:12]} Bxd2 {[%emt 00:00:02] [%clk 00:03:06]} 18. Nxd2 {[%clk 00:01:13]}
Nxd4 {[%emt 00:00:02] [%clk 00:03:06]} 19. Bxd7 {[%emt 00:00:03] [%clk
00:01:12]} Bxd7 {[%emt 00:00:01] [%clk 00:03:06]} 20. Rad1 {[%emt 00:00:07]
[%clk 00:01:07]} Ba4 {[%emt 00:00:18] [%clk 00:02:50]} 21. b3 {[%emt 00:00:06]
[%clk 00:01:03]} Nxb3 {[%emt 00:00:04] [%clk 00:02:48]} 22. Nxb3 {[%emt
00:00:01] [%clk 00:01:04]} Bxb3 {[%emt 00:00:02] [%clk 00:02:49]} 23. Rb1 {[%clk
00:01:05]} Ba4 {[%emt 00:00:04] [%clk 00:02:48]} 24. Rxb6 {[%emt 00:00:04] [%clk
00:01:02]} Bc6 {[%clk 00:02:49]} 25. Bd6 {[%emt 00:00:02] [%clk 00:01:02]} Rhe8
{[%emt 00:00:01] [%clk 00:02:50]} 26. Rbb1 {[%emt 00:00:03] [%clk 00:01:02]} h4
{[%emt 00:00:09] [%clk 00:02:42]} 27. Bc5 {[%emt 00:00:04] [%clk 00:01:01]} Kg6
{[%emt 00:00:21] [%clk 00:02:23]} 28. f3 {[%emt 00:00:02] [%clk 00:01:01]} Re5
{[%emt 00:00:25] [%clk 00:02:00]} 29. Kf2 {[%emt 00:00:04] [%clk 00:00:58]} Kf5
{[%emt 00:00:03] [%clk 00:01:59]} 30. Rb3 {[%emt 00:00:13] [%clk 00:00:47]} Ra4
{[%emt 00:00:33] [%clk 00:01:29]} 31. Rd3 {[%emt 00:00:15] [%clk 00:00:33]} Rc4
{[%emt 00:00:04] [%clk 00:01:28]} 32. Bb4 {[%emt 00:00:13] [%clk 00:00:21]} d4
{[%emt 00:00:08] [%clk 00:01:22]} 33. Red1 {[%emt 00:00:03] [%clk 00:00:21]} Rd5
{[%clk 00:01:23]} 34. R1d2 {[%emt 00:00:08] [%clk 00:00:15]} Bb5 {[%emt
00:00:05] [%clk 00:01:19]} 35. Rb3 {[%emt 00:00:03] [%clk 00:00:14]} Ba4 {[%emt
00:00:01] [%clk 00:01:21]} 36. Rbb2 {[%emt 00:00:02] [%clk 00:00:14]} d3 {[%emt
00:00:02] [%clk 00:01:20]} 37. Be7 {[%emt 00:00:06] [%clk 00:00:10]} b5 {[%emt
00:00:03] [%clk 00:01:20]} 38. Bb4 {[%emt 00:00:05] [%clk 00:00:07]} Bc2 {[%emt
00:00:02] [%clk 00:01:20]} 39. Ba5 {[%emt 00:00:03] [%clk 00:00:06]} Re5 {[%emt
00:00:05] [%clk 00:01:17]} 40. Bb4 {[%emt 00:00:02] [%clk 00:00:05]} Rc6 {[%emt
00:00:01] [%clk 00:01:18]} 41. Ba5 {[%emt 00:00:05] [%clk 00:00:03]} Rce6 {[%emt
00:00:02] [%clk 00:01:18]} 42. Bb4 {[%emt 00:00:01] [%clk 00:00:03]} Re2+ {[%emt
00:00:02] [%clk 00:01:18]} 43. Kf1 {[%emt 00:00:02] [%clk 00:00:04]} Re1+ {[%emt
00:00:07] [%clk 00:01:13]} 44. Kf2 {[%emt 00:00:01] [%clk 00:00:05]} R6e2+
{[%clk 00:01:13]} 45. Rxe2 {[%emt 00:00:01] [%clk 00:00:06]} Rxe2+ {[%clk
00:01:14]} 46. Kf1 {[%clk 00:00:07]} d2 {[%emt 00:00:07] [%clk 00:01:10]} 47.
Bxd2 {[%emt 00:00:03] [%clk 00:00:05]} Rxd2 {[%emt 00:00:01] [%clk 00:01:11]}
48. Rxb5+ {[%clk 00:00:07]} Kf4 {[%emt 00:00:06] [%clk 00:01:06]} 49. Rb6 {[%emt
00:00:06] [%clk 00:00:04]} f5 {[%emt 00:00:05] [%clk 00:01:02]} 50. Kg1 {[%emt
00:00:04] [%clk 00:00:00]} 0-1

[Site "Europe Echecs"]

[Event "Championnat d'Europe de Blitz"]
[Date "2024.12.09"]
[White "Santos Latasa, Jaime"]
[Black "Vuckovic, Zarko"]
[WhiteElo "2628"]
[BlackElo "2334"]
[Round "3.7"]
[Result "1-0"]
[TimeControl "180+2"]

1. Nf3 {[%emt 00:13:29] [%clk 00:03:03]} d5 {[%clk 00:03:03]} 2. e3 {[%clk
00:03:04]} Nf6 3. c4 {[%clk 00:03:05]} e6 {[%emt 00:00:01] [%clk 00:03:06]} 4.
Nc3 {[%clk 00:03:07]} Be7 {[%emt 00:00:40] [%clk 00:02:27]} 5. b3 {[%emt
00:00:01] [%clk 00:03:08]} O-O {[%emt 00:00:02] [%clk 00:02:27]} 6. Bb2 {[%clk
00:03:09]} c5 {[%emt 00:00:05] [%clk 00:02:26]} 7. cxd5 {[%emt 00:00:01] [%clk
00:03:09]} Nxd5 {[%emt 00:00:01] [%clk 00:02:27]} 8. Qc2 {[%emt 00:00:01] [%clk
00:03:10]} Nc6 {[%emt 00:00:10] [%clk 00:02:19]} 9. h4 {[%emt 00:00:01] [%clk
00:03:10]} Nf6 {[%emt 00:00:27] [%clk 00:01:54]} 10. a3 {[%emt 00:00:09] [%clk
00:03:04]} e5 {[%emt 00:00:03] [%clk 00:01:53]} 11. Bc4 {[%emt 00:00:05] [%clk
00:03:01]} a6 {[%emt 00:00:06] [%clk 00:01:49]} 12. Ng5 {[%emt 00:00:06] [%clk
00:02:56]} h6 {[%emt 00:00:25] [%clk 00:01:26]} 13. Nd5 {[%emt 00:00:07] [%clk
00:02:52]} e4 {[%emt 00:00:29] [%clk 00:00:59]} 14. Nxf6+ {[%emt 00:00:20] [%clk
00:02:34]} Bxf6 {[%emt 00:00:01] [%clk 00:01:00]} 15. Qxe4 {[%emt 00:00:21]
[%clk 00:02:15]} Bxg5 {[%emt 00:00:14] [%clk 00:00:48]} 16. hxg5 {[%emt
00:00:01] [%clk 00:02:16]} Qxg5 {[%clk 00:00:49]} 17. Bd3 {[%emt 00:00:15] [%clk
00:02:04]} g6 {[%emt 00:00:25] [%clk 00:00:26]} 18. f4 {[%emt 00:00:21] [%clk
00:01:44]} Qg3+ {[%emt 00:00:09] [%clk 00:00:20]} 19. Kf1 {[%emt 00:00:36] [%clk
00:01:10]} h5 {[%emt 00:00:11] [%clk 00:00:10]} 20. Rxh5 {[%emt 00:00:07] [%clk
00:01:05]} f6 {[%emt 00:00:04] [%clk 00:00:09]} 21. Rg5 {[%emt 00:00:09] [%clk
00:00:57]} 1-0

[Site "Europe Echecs"]

[Event "Championnat d'Europe de Blitz"]
[Date "2024.12.09"]
[White "Nikolovski, Nikola"]
[Black "Van Foreest, Jorden"]
[WhiteElo "2407"]
[BlackElo "2677"]
[Round "3.8"]
[Result "0-1"]
[TimeControl "180+2"]

1. e4 {[%clk 00:03:02]} e5 {[%emt 00:00:02] [%clk 00:03:03]} 2. Nf3 {[%emt
00:00:14] [%clk 00:02:50]} Nc6 {[%emt 00:00:02] [%clk 00:03:03]} 3. Nc3 {[%emt
00:00:01] [%clk 00:02:51]} Nf6 {[%emt 00:00:01] [%clk 00:03:03]} 4. Bb5 {[%emt
00:00:02] [%clk 00:02:51]} Bb4 {[%emt 00:00:04] [%clk 00:03:01]} 5. O-O {[%emt
00:00:16] [%clk 00:02:38]} O-O {[%emt 00:00:08] [%clk 00:02:54]} 6. Bxc6 {[%emt
00:00:03] [%clk 00:02:38]} dxc6 {[%emt 00:00:01] [%clk 00:02:55]} 7. d3 {[%emt
00:00:02] [%clk 00:02:38]} Nd7 {[%emt 00:00:02] [%clk 00:02:55]} 8. Ne2 {[%emt
00:00:05] [%clk 00:02:35]} a5 {[%emt 00:00:01] [%clk 00:02:55]} 9. Ng3 {[%emt
00:00:11] [%clk 00:02:26]} Re8 {[%emt 00:00:01] [%clk 00:02:56]} 10. Kh1 {[%emt
00:00:19] [%clk 00:02:09]} Nf8 {[%emt 00:00:05] [%clk 00:02:53]} 11. h3 {[%emt
00:00:10] [%clk 00:02:02]} Ng6 {[%emt 00:00:04] [%clk 00:02:51]} 12. Nh5 {[%emt
00:00:13] [%clk 00:01:51]} a4 {[%emt 00:00:12] [%clk 00:02:41]} 13. a3 {[%emt
00:00:04] [%clk 00:01:50]} Bd6 {[%emt 00:00:02] [%clk 00:02:40]} 14. Nh2 {[%emt
00:00:02] [%clk 00:01:50]} Qh4 {[%emt 00:00:10] [%clk 00:02:32]} 15. Ng3 {[%emt
00:00:17] [%clk 00:01:36]} Qd8 {[%emt 00:00:17] [%clk 00:02:16]} 16. Nh5 {[%emt
00:00:03] [%clk 00:01:35]} c5 {[%emt 00:00:05] [%clk 00:02:14]} 17. f4 {[%emt
00:00:12] [%clk 00:01:25]} exf4 {[%emt 00:00:02] [%clk 00:02:14]} 18. Nxf4
{[%emt 00:00:02] [%clk 00:01:25]} c4 {[%emt 00:00:20] [%clk 00:01:56]} 19. Qf3
{[%emt 00:00:18] [%clk 00:01:09]} Qf6 {[%emt 00:00:18] [%clk 00:01:40]} 20. dxc4
{[%emt 00:00:28] [%clk 00:00:42]} Nxf4 {[%emt 00:00:11] [%clk 00:01:31]} 21.
Bxf4 {[%emt 00:00:02] [%clk 00:00:43]} Qxf4 {[%emt 00:00:02] [%clk 00:01:31]}
22. Qxf4 {[%emt 00:00:01] [%clk 00:00:43]} Bxf4 {[%emt 00:00:02] [%clk
00:01:31]} 23. Rxf4 {[%clk 00:00:44]} Be6 {[%emt 00:00:01] [%clk 00:01:32]} 24.
e5 {[%emt 00:00:02] [%clk 00:00:45]} Red8 {[%emt 00:00:07] [%clk 00:01:27]} 25.
Nf3 {[%emt 00:00:01] [%clk 00:00:46]} h6 {[%emt 00:00:01] [%clk 00:01:28]} 26.
h4 {[%clk 00:00:46]} Ra6 {[%emt 00:00:15] [%clk 00:01:16]} 27. Kg1 {[%emt
00:00:15] [%clk 00:00:33]} Rc6 {[%emt 00:00:28] [%clk 00:00:50]} 28. b3 {[%emt
00:00:01] [%clk 00:00:34]} Rc5 {[%emt 00:00:01] [%clk 00:00:51]} 29. Re1 {[%emt
00:00:05] [%clk 00:00:30]} Ra8 {[%emt 00:00:02] [%clk 00:00:52]} 30. Ra1 {[%emt
00:00:10] [%clk 00:00:22]} Rd8 {[%emt 00:00:35] [%clk 00:00:19]} 31. Re1 {[%emt
00:00:03] [%clk 00:00:21]} Kf8 {[%emt 00:00:09] [%clk 00:00:12]} 32. Kf2 {[%emt
00:00:04] [%clk 00:00:18]} Ke7 {[%clk 00:00:13]} 33. Ke2 {[%emt 00:00:09] [%clk
00:00:11]} b5 {[%emt 00:00:01] [%clk 00:00:14]} 34. bxa4 {[%emt 00:00:08] [%clk
00:00:05]} Bxc4+ {[%emt 00:00:05] [%clk 00:00:12]} 35. Kf2 {[%clk 00:00:07]}
bxa4 {[%emt 00:00:01] [%clk 00:00:13]} 36. Nd4 {[%emt 00:00:05] [%clk 00:00:04]}
Be6 {[%emt 00:00:01] [%clk 00:00:13]} 37. Re2 {[%emt 00:00:03] [%clk 00:00:03]}
Rc3 {[%clk 00:00:14]} 38. Re3 {[%emt 00:00:02] [%clk 00:00:04]} Rc4 {[%emt
00:00:01] [%clk 00:00:14]} 39. c3 {[%emt 00:00:03] [%clk 00:00:04]} Rc5 {[%emt
00:00:06] [%clk 00:00:11]} 40. Kf3 {[%emt 00:00:02] [%clk 00:00:04]} Bd5+ {[%emt
00:00:01] [%clk 00:00:11]} 41. Kg3 {[%emt 00:00:01] [%clk 00:00:05]} Be6 {[%emt
00:00:01] [%clk 00:00:12]} 42. Kf3 {[%emt 00:00:01] [%clk 00:00:06]} Rb8 {[%emt
00:00:02] [%clk 00:00:13]} 43. g4 {[%emt 00:00:04] [%clk 00:00:03]} Rb2 {[%clk
00:00:14]} 44. g5 {[%emt 00:00:03] [%clk 00:00:03]} hxg5 {[%emt 00:00:03] [%clk
00:00:13]} 45. hxg5 {[%emt 00:00:01] [%clk 00:00:04]} Ra2 {[%clk 00:00:14]} 46.
Ke4 {[%emt 00:00:03] [%clk 00:00:04]} Bd5+ {[%emt 00:00:03] [%clk 00:00:13]} 47.
Kf5 {[%emt 00:00:02] [%clk 00:00:04]} Rg2 {[%emt 00:00:03] [%clk 00:00:12]} 48.
Rg4 {[%emt 00:00:04] [%clk 00:00:03]} Be6+ {[%emt 00:00:02] [%clk 00:00:12]} 49.
Nxe6 {[%clk 00:00:04]} fxe6+ {[%emt 00:00:01] [%clk 00:00:13]} 50. Kf4 {[%emt
00:00:02] [%clk 00:00:03]} Rc4+ {[%clk 00:00:14]} 0-1

[Site "Europe Echecs"]

[Event "Championnat d'Europe de Blitz"]
[Date "2024.12.09"]
[White "Fressinet, Laurent"]
[Black "Arnaudov, G. Petar"]
[WhiteElo "2588"]
[BlackElo "2401"]
[Round "3.9"]
[Result "0-1"]
[TimeControl "180+2"]

1. Nf3 {[%clk 00:03:03]} Nf6 {[%emt 00:00:02] [%clk 00:03:02]} 2. g3 {[%emt
00:00:01] [%clk 00:03:03]} d5 {[%emt 00:00:05] [%clk 00:02:59]} 3. Bg2 {[%emt
00:00:02] [%clk 00:03:04]} e6 {[%clk 00:03:00]} 4. d4 {[%emt 00:00:01] [%clk
00:03:04]} Be7 {[%emt 00:00:05] [%clk 00:02:57]} 5. c4 {[%emt 00:00:02] [%clk
00:03:05]} O-O {[%emt 00:00:02] [%clk 00:02:57]} 6. Qc2 {[%clk 00:03:06]} a5
{[%emt 00:00:03] [%clk 00:02:56]} 7. O-O {[%emt 00:00:06] [%clk 00:03:01]} Nbd7
{[%emt 00:00:03] [%clk 00:02:55]} 8. Nbd2 {[%emt 00:00:15] [%clk 00:02:49]} c5
{[%emt 00:00:08] [%clk 00:02:49]} 9. cxd5 {[%emt 00:00:13] [%clk 00:02:38]} exd5
{[%emt 00:00:19] [%clk 00:02:32]} 10. b3 {[%clk 00:02:39]} b6 {[%emt 00:00:02]
[%clk 00:02:32]} 11. Bb2 {[%emt 00:00:01] [%clk 00:02:40]} Ba6 {[%emt 00:00:05]
[%clk 00:02:30]} 12. Ne5 {[%emt 00:00:11] [%clk 00:02:30]} Rc8 {[%emt 00:00:05]
[%clk 00:02:26]} 13. Ndf3 {[%emt 00:00:08] [%clk 00:02:24]} cxd4 {[%emt
00:00:23] [%clk 00:02:06]} 14. Qd1 {[%emt 00:00:03] [%clk 00:02:22]} Nc5 {[%emt
00:00:06] [%clk 00:02:03]} 15. Nxd4 {[%emt 00:00:04] [%clk 00:02:20]} Bd6 {[%emt
00:00:10] [%clk 00:01:56]} 16. Nef3 {[%emt 00:00:22] [%clk 00:01:59]} Re8 {[%emt
00:00:03] [%clk 00:01:55]} 17. Re1 {[%emt 00:00:02] [%clk 00:01:59]} Nce4 {[%emt
00:00:04] [%clk 00:01:52]} 18. a3 {[%emt 00:00:13] [%clk 00:01:49]} Ng4 {[%emt
00:00:37] [%clk 00:01:16]} 19. Rf1 {[%clk 00:01:51]} Nc3 {[%emt 00:00:06] [%clk
00:01:12]} 20. Bxc3 {[%emt 00:00:08] [%clk 00:01:45]} Rxc3 {[%emt 00:00:01]
[%clk 00:01:13]} 21. Qd2 {[%clk 00:01:46]} Rc7 {[%emt 00:00:12] [%clk 00:01:03]}
22. Rfe1 {[%emt 00:00:27] [%clk 00:01:21]} Nf6 {[%emt 00:00:05] [%clk 00:01:00]}
23. Nf5 {[%emt 00:00:11] [%clk 00:01:12]} Bf8 {[%emt 00:00:07] [%clk 00:00:56]}
24. N3d4 {[%emt 00:00:22] [%clk 00:00:51]} Ne4 {[%emt 00:00:02] [%clk 00:00:56]}
25. Qf4 {[%emt 00:00:06] [%clk 00:00:46]} g6 {[%emt 00:00:25] [%clk 00:00:34]}
26. Nh6+ {[%emt 00:00:06] [%clk 00:00:42]} Bxh6 {[%emt 00:00:01] [%clk
00:00:35]} 27. Qxh6 {[%emt 00:00:01] [%clk 00:00:43]} Qf6 {[%emt 00:00:01] [%clk
00:00:36]} 28. Qe3 {[%emt 00:00:14] [%clk 00:00:31]} Rc3 {[%emt 00:00:02] [%clk
00:00:36]} 29. Qf4 {[%emt 00:00:09] [%clk 00:00:24]} Qxd4 {[%emt 00:00:05] [%clk
00:00:32]} 30. Rad1 {[%clk 00:00:26]} Qe5 {[%emt 00:00:01] [%clk 00:00:33]} 31.
Qh4 {[%emt 00:00:01] [%clk 00:00:26]} Qf6 {[%emt 00:00:05] [%clk 00:00:31]} 32.
Qxf6 {[%emt 00:00:19] [%clk 00:00:09]} Nxf6 {[%clk 00:00:32]} 33. b4 {[%emt
00:00:02] [%clk 00:00:10]} Bxe2 {[%emt 00:00:07] [%clk 00:00:27]} 34. Rd2 {[%emt
00:00:01] [%clk 00:00:11]} Bc4 {[%emt 00:00:01] [%clk 00:00:27]} 0-1

[Site "Europe Echecs"]

[Event "Championnat d'Europe de Blitz"]
[Date "2024.12.09"]
[White "Domingo Nunez, Ruben"]
[Black "Pultinevicius, Paulius"]
[WhiteElo "2409"]
[BlackElo "2579"]
[Round "3.10"]
[Result "1/2-1/2"]
[TimeControl "180+2"]

1. e4 {[%emt 00:00:02] [%clk 00:03:03]} c6 {[%emt 00:00:01] [%clk 00:03:03]} 2.
Nf3 {[%emt 00:00:01] [%clk 00:03:04]} d5 {[%clk 00:03:04]} 3. Nc3 {[%emt
00:00:03] [%clk 00:03:05]} Bg4 {[%emt 00:00:04] [%clk 00:03:01]} 4. h3 {[%clk
00:03:06]} Bxf3 {[%emt 00:00:02] [%clk 00:03:00]} 5. Qxf3 {[%clk 00:03:06]} e6
{[%emt 00:00:02] [%clk 00:03:01]} 6. g3 {[%clk 00:03:07]} Nd7 {[%emt 00:00:02]
[%clk 00:03:02]} 7. Bg2 {[%emt 00:00:02] [%clk 00:03:07]} g6 {[%clk 00:03:03]}
8. d4 {[%emt 00:00:01] [%clk 00:03:07]} Bg7 {[%emt 00:00:02] [%clk 00:03:03]} 9.
Be3 {[%emt 00:00:01] [%clk 00:03:08]} Ne7 {[%emt 00:00:06] [%clk 00:02:59]} 10.
O-O {[%emt 00:00:06] [%clk 00:03:04]} Qb6 {[%emt 00:00:10] [%clk 00:02:51]} 11.
Rab1 {[%emt 00:00:06] [%clk 00:03:00]} O-O {[%emt 00:00:13] [%clk 00:02:39]} 12.
Rfd1 {[%emt 00:00:02] [%clk 00:03:02]} dxe4 {[%emt 00:00:14] [%clk 00:02:27]}
13. Nxe4 {[%emt 00:00:01] [%clk 00:03:02]} Nf5 {[%emt 00:00:04] [%clk 00:02:24]}
14. c3 {[%emt 00:00:02] [%clk 00:03:03]} e5 {[%emt 00:00:20] [%clk 00:02:06]}
15. dxe5 {[%emt 00:01:16] [%clk 00:01:49]} Nxe5 {[%emt 00:00:12] [%clk
00:01:57]} 16. Bxb6 {[%emt 00:00:01] [%clk 00:01:49]} Nxf3+ {[%clk 00:01:57]}
17. Bxf3 {[%emt 00:00:01] [%clk 00:01:50]} axb6 {[%emt 00:00:02] [%clk
00:01:58]} 18. a3 {[%clk 00:01:51]} Rad8 {[%emt 00:00:32] [%clk 00:01:28]} 19.
Bg4 {[%emt 00:00:01] [%clk 00:01:52]} Ne7 {[%emt 00:00:12] [%clk 00:01:18]} 20.
Nd6 {[%emt 00:00:01] [%clk 00:01:53]} Rb8 {[%emt 00:00:59] [%clk 00:00:22]} 21.
Nc4 {[%emt 00:00:08] [%clk 00:01:47]} b5 {[%emt 00:00:03] [%clk 00:00:20]} 22.
Nb6 {[%emt 00:00:01] [%clk 00:01:48]} Rfd8 {[%emt 00:00:02] [%clk 00:00:20]} 23.
Nd7 {[%clk 00:01:49]} Ra8 {[%emt 00:00:01] [%clk 00:00:22]} 24. Nc5 {[%clk
00:01:50]} b6 {[%emt 00:00:02] [%clk 00:00:22]} 25. Nb7 {[%emt 00:00:04] [%clk
00:01:48]} Rdb8 {[%emt 00:00:08] [%clk 00:00:17]} 26. Rd7 {[%emt 00:00:04] [%clk
00:01:45]} Nd5 {[%clk 00:00:19]} 27. Bf3 {[%emt 00:00:09] [%clk 00:01:39]} Ra7
{[%emt 00:00:16] [%clk 00:00:05]} 28. Rd8+ {[%emt 00:00:16] [%clk 00:01:25]}
Rxd8 {[%clk 00:00:06]} 29. Nxd8 {[%clk 00:01:27]} Rd7 {[%emt 00:00:04] [%clk
00:00:04]} 30. Nxc6 {[%emt 00:00:03] [%clk 00:01:26]} Nf6 {[%emt 00:00:02] [%clk
00:00:03]} 31. Rd1 {[%emt 00:00:03] [%clk 00:01:25]} Rc7 {[%emt 00:00:02] [%clk
00:00:04]} 32. Rd8+ {[%emt 00:00:03] [%clk 00:01:23]} Bf8 {[%clk 00:00:05]} 33.
Nd4 {[%clk 00:01:25]} Rc5 {[%clk 00:00:06]} 34. Rb8 {[%emt 00:00:04] [%clk
00:01:22]} Nd7 {[%clk 00:00:08]} 35. Rb7 {[%emt 00:00:01] [%clk 00:01:23]} Ne5
{[%emt 00:00:02]} 36. Be2 {[%clk 00:01:21]} Rd5 {[%emt 00:00:30] [%clk
00:00:05]} 1/2-1/2

[Site "Europe Echecs"]

[Event "Championnat d'Europe de Blitz"]
[Date "2024.12.09"]
[White "Kadric, Denis"]
[Black "Mohr, Georg"]
[WhiteElo "2544"]
[BlackElo "2385"]
[Round "3.11"]
[Result "0-1"]
[TimeControl "180+2"]

1. e4 {[%emt 00:20:56] [%clk 00:03:03]} c5 {[%clk 00:03:03]} 2. Nc3 {[%emt
00:00:02] [%clk 00:03:04]} e6 {[%emt 00:00:02] [%clk 00:03:03]} 3. Nge2 {[%emt
00:00:03] [%clk 00:03:03]} Nc6 {[%emt 00:00:06] [%clk 00:02:59]} 4. g3 {[%clk
00:03:04]} d5 {[%emt 00:00:04] [%clk 00:02:57]} 5. exd5 {[%clk 00:03:05]} exd5
{[%emt 00:00:01] [%clk 00:02:59]} 6. d4 {[%clk 00:03:07]} Nf6 {[%emt 00:00:09]
[%clk 00:02:51]} 7. Be3 {[%clk 00:03:08]} cxd4 {[%emt 00:00:02] [%clk 00:02:51]}
8. Bxd4 {[%emt 00:00:01] [%clk 00:03:09]} Nxd4 {[%emt 00:00:09] [%clk 00:02:45]}
9. Qxd4 {[%emt 00:00:04] [%clk 00:03:07]} Qb6 {[%emt 00:00:26] [%clk 00:02:21]}
10. Qxb6 {[%emt 00:00:09] [%clk 00:03:00]} axb6 {[%emt 00:00:01] [%clk
00:02:22]} 11. Bg2 {[%emt 00:00:01] [%clk 00:03:01]} Be6 {[%clk 00:02:24]} 12.
O-O-O {[%emt 00:00:09] [%clk 00:02:54]} O-O-O {[%emt 00:00:01] [%clk 00:02:25]}
13. Nf4 {[%emt 00:00:14] [%clk 00:02:41]} d4 {[%emt 00:00:01] [%clk 00:02:26]}
14. Nxe6 {[%emt 00:00:02] [%clk 00:02:42]} fxe6 {[%clk 00:02:27]} 15. Nb5 {[%emt
00:00:14] [%clk 00:02:30]} Bc5 {[%emt 00:00:12] [%clk 00:02:17]} 16. Rhe1 {[%emt
00:00:02] [%clk 00:02:30]} Ng4 {[%emt 00:00:43] [%clk 00:01:36]} 17. Rxe6 {[%emt
00:00:49] [%clk 00:01:43]} Nxf2 {[%emt 00:00:01] [%clk 00:01:36]} 18. Rd2 {[%clk
00:01:45]} Rhf8 {[%emt 00:00:17] [%clk 00:01:22]} 19. a3 {[%emt 00:00:13] [%clk
00:01:35]} d3 {[%emt 00:00:38] [%clk 00:00:45]} 20. b4 {[%emt 00:00:03] [%clk
00:01:35]} Bd4 {[%emt 00:00:08] [%clk 00:00:39]} 21. cxd3 {[%emt 00:00:19] [%clk
00:01:18]} Bf6 {[%emt 00:00:03] [%clk 00:00:37]} 22. Rc2+ {[%emt 00:00:27] [%clk
00:00:53]} Kb8 {[%emt 00:00:01] [%clk 00:00:38]} 23. Rxb6 {[%emt 00:00:01] [%clk
00:00:54]} Nxd3+ {[%emt 00:00:06] [%clk 00:00:34]} 24. Kb1 {[%clk 00:00:56]} Rd7
{[%emt 00:00:01] [%clk 00:00:35]} 25. Nd6 {[%emt 00:00:10] [%clk 00:00:48]} Ne1
{[%emt 00:00:05] [%clk 00:00:31]} 26. Re2 {[%emt 00:00:24] [%clk 00:00:27]} Nxg2
{[%emt 00:00:02] [%clk 00:00:31]} 27. Rxg2 {[%emt 00:00:01] [%clk 00:00:28]} Bd8
{[%emt 00:00:03] [%clk 00:00:29]} 28. Nc4 {[%emt 00:00:06] [%clk 00:00:25]} Bxb6
{[%clk 00:00:30]} 29. Nxb6 {[%clk 00:00:26]} Rd4 {[%emt 00:00:02] [%clk
00:00:30]} 30. Kb2 {[%emt 00:00:08] [%clk 00:00:21]} Rfd8 {[%emt 00:00:02] [%clk
00:00:30]} 31. Kb3 {[%emt 00:00:12] [%clk 00:00:11]} Rd3+ {[%emt 00:00:02] [%clk
00:00:29]} 32. Ka4 {[%emt 00:00:02] [%clk 00:00:12]} Rd2 {[%emt 00:00:03] [%clk
00:00:27]} 33. Rg1 {[%emt 00:00:04] [%clk 00:00:11]} Rd1 {[%clk 00:00:28]} 34.
Rxd1 {[%emt 00:00:03] [%clk 00:00:10]} Rxd1 {[%emt 00:00:01] [%clk 00:00:29]}
35. Nc4 {[%emt 00:00:02] [%clk 00:00:11]} Kc7 {[%emt 00:00:02] [%clk 00:00:28]}
36. Kb5 {[%emt 00:00:02] [%clk 00:00:12]} Rh1 {[%emt 00:00:01] [%clk 00:00:28]}
37. h4 {[%emt 00:00:02] [%clk 00:00:13]} Rg1 {[%clk 00:00:29]} 38. Ne3 {[%emt
00:00:04] [%clk 00:00:12]} Rxg3 {[%emt 00:00:01] [%clk 00:00:29]} 39. Nd5+
{[%emt 00:00:01] [%clk 00:00:13]} Kb8 {[%clk 00:00:30]} 40. a4 {[%emt 00:00:02]
[%clk 00:00:13]} Rh3 {[%emt 00:00:02] [%clk 00:00:31]} 41. Kc5 {[%emt 00:00:05]
[%clk 00:00:10]} Rxh4 {[%emt 00:00:01] [%clk 00:00:31]} 42. a5 {[%clk 00:00:12]}
Rh5 {[%emt 00:00:01] [%clk 00:00:32]} 43. b5 {[%emt 00:00:01] [%clk 00:00:13]}
g5 {[%emt 00:00:03] [%clk 00:00:31]} 44. Nf6 {[%emt 00:00:03] [%clk 00:00:12]}
Rh6 {[%emt 00:00:05] [%clk 00:00:28]} 45. Nd7+ {[%clk 00:00:13]} Kc7 {[%emt
00:00:01] [%clk 00:00:29]} 46. Ne5 {[%clk 00:00:14]} Rh5 {[%emt 00:00:04] [%clk
00:00:27]} 47. b6+ {[%emt 00:00:01] [%clk 00:00:15]} Kc8 {[%emt 00:00:01] [%clk
00:00:28]} 48. Nf7 {[%emt 00:00:11] [%clk 00:00:06]} g4+ {[%emt 00:00:02] [%clk
00:00:28]} 49. Kb4 {[%clk 00:00:08]} g3 {[%emt 00:00:02] [%clk 00:00:28]} 50.
Nd6+ {[%emt 00:00:01] [%clk 00:00:09]} Kb8 {[%clk 00:00:29]} 0-1

[Site "Europe Echecs"]